bitfinex/quotes_ETHUSD_20251108
["timestamp","ask_amount","ask_price","bid_price","bid_amount"]
[1762626821497,5.07572068,3398.6,3398.1,0.001]
[1762626821699,1.72782864,3398.6,3398.1,2.94376058]
[1762626821898,1.72782864,3398.6,3398.2,0.1464]
[1762626822211,2.20092864,3398.6,3398.2,0.1464]
[1762626822814,2.20092864,3398.6,3398.2,3.08907926]
[1762626823712,0.94121664,3398.6,3398.2,0.1464]
[1762626823890,0.27591664,3398.6,3398.5,0.4821]
[1762626824818,0.27591664,3398.6,3398.5,0.9695]
[1762626825327,0.27591664,3398.6,3398.5,4.61217817]
[1762626825516,0.27591664,3398.6,3398.5,4.75857817]
[1762626826704,0.27591664,3398.6,3398.5,1.32870355]
[1762626826901,0.27591664,3398.6,3398.5,0.6285]
[1762626827897,0.27591664,3398.6,3398.5,3.57097462]
[1762626828089,0.27591664,3398.6,3398.5,4.05837462]
[1762626829806,0.27591664,3398.6,3398.5,0.1474]
[1762626830137,1.22841664,3398.6,3398.5,0.1474]
[1762626830498,4.17080468,3398.6,3398.5,0.001]
[1762626831306,4.16931091,3398.6,3398.5,0.001]
[1762626833122,1.22692287,3398.6,3398.5,0.001]
[1762626835134,4.16931091,3398.6,3398.5,0.001]
[1762626835437,1.22692287,3398.6,3398.5,0.001]
[1762626835643,4.91334108,3398.6,3398.5,0.001]
[1762626835850,1.97095304,3398.6,3398.5,0.001]
[1762626836337,4.91334108,3398.6,3398.5,0.001]
[1762626840659,5.31884508,3398.6,3398.5,0.001]
[1762626842320,6.57855708,3398.6,3398.5,0.001]
[1762626843428,7.01989112,3398.6,3398.5,0.001]
[1762626843938,6.69649116,3398.6,3398.5,0.001]
[1762626844761,1.61855304,3398.6,3398.5,0.001]
[1762626844945,0.42082287,3398.6,3398.5,0.001]
[1762626845121,3.81731091,3398.6,3398.5,0.001]
[1762626845322,4.68731491,3398.6,3398.5,0.001]
[1762626846058,5.94702691,3398.6,3398.5,0.001]
[1762626846225,7.36168793,3398.6,3398.5,0.001]
[1762626846425,7.36218583,3398.6,3398.5,0.001]
[1762626850462,7.80351987,3398.6,3398.5,0.001]
[1762626853637,4.60795038,3398.2,3398.1,0.001]
[1762626853824,10.4095831,3398.2,3398.1,0.001]
[1762626854159,12.63797297,3398.2,3398.1,0.001]
[1762626856330,13.07633576,3398.2,3398.1,0.001]
[1762626857932,13.07590315,3398.2,3398.1,0.001]
[1762626858347,13.53754046,3398.2,3398.1,0.001]
[1762626858872,3.1733942,3397.9,3397.8,1e-08]
[1762626859070,3.1733942,3397.9,3396.7,0.1474]
[1762626859071,4.60855669,3397.5,3396.7,0.001]
[1762626859271,10.62891959,3397.5,3396.7,0.001]
[1762626859572,11.53475363,3397.5,3396.7,0.001]
[1762626864488,11.65274129,3397.5,3396.7,0.001]
[1762626864694,12.38515338,3397.5,3396.7,0.001]
[1762626865549,3.34919126,3397.1,3396.7,0.001]
[1762626865872,10.84243741,3397.1,3396.7,0.001]
[1762626866193,11.30693741,3397.1,3396.7,0.001]
[1762626866364,12.72159843,3397.1,3396.7,0.001]
[1762626867953,12.28026439,3397.1,3396.7,0.001]
[1762626871993,6.29805244,3397.1,3397.0,0.4559]
[1762626872159,4.47788742,3397.1,3397.0,0.4559]
[1762626872362,4.47788742,3397.1,3397.0,0.9153]
[1762626872562,4.88339142,3397.1,3397.0,0.4559]
[1762626873400,4.47788742,3397.1,3397.0,0.9153]
[1762626873697,4.88339142,3397.1,3397.0,0.9153]
[1762626876302,0.82639216,3397.1,3397.0,0.9153]
[1762626876663,0.27448816,3397.1,3397.0,0.9153]
[1762626877604,0.27448816,3397.1,3397.0,4.55413112]
[1762626877916,0.27448816,3397.1,3397.0,4.70053112]
[1762626878121,0.27448816,3397.1,3397.0,1.0617]
[1762626878416,3.21817542,3397.1,3397.0,0.9153]
[1762626878778,3.21817542,3397.1,3397.0,0.4559]
[1762626879205,4.88339142,3397.1,3397.0,0.4559]
[1762626881900,0.27448816,3397.1,3397.0,0.4559]
[1762626882102,0.27448816,3397.1,3397.0,0.9153]
[1762626883105,0.27448816,3397.1,3397.0,3.85907391]
[1762626884706,0.27448816,3397.1,3397.0,0.4559]
[1762626884904,0.27448816,3397.1,3397.0,3.88737391]
[1762626886546,0.002,3397.4,3397.1,2.94368376]
[1762626886742,0.002,3397.4,3397.3,0.6472]
[1762626886943,0.27670687,3397.4,3397.3,1.1349]
[1762626888646,3.22017246,3397.4,3397.3,0.4623]
[1762626888944,0.90788985,3397.4,3397.3,0.95]
[1762626889149,0.27670687,3397.4,3397.3,0.95]
[1762626892657,0.27654999,3397.4,3397.3,0.4623]
[1762626896740,0.27654999,3397.4,3397.1,0.1849]
[1762626896931,0.27454999,3397.3,3397.1,0.1849]
[1762626897131,0.27454999,3397.2,3397.1,0.1849]
[1762626897331,0.27454999,3397.2,3397.1,0.6726]
[1762626897532,0.27454999,3397.2,3397.1,1.1349]
[1762626897931,0.27454999,3397.2,3397.1,4.07858726]
[1762626898443,0.27465852,3397.2,3397.1,4.07858726]
[1762626900873,0.27465852,3397.2,3397.1,5.23634939]
[1762626901369,0.27465852,3397.2,3397.1,5.23734939]
[1762626901948,0.27465852,3397.2,3397.1,0.7946]
[1762626902149,0.27465852,3397.2,3397.1,3.40698726]
[1762626902354,0.27494736,3397.2,3397.1,4.08888726]
[1762626902955,0.27494736,3397.2,3397.1,3.59378726]
[1762626903162,0.27494736,3397.2,3397.1,3.40698726]
[1762626903589,0.27494736,3397.2,3397.1,3.59378726]
[1762626904290,0.27494736,3397.2,3397.1,4.08888726]
[1762626904590,0.27494736,3397.2,3397.1,4.37888726]
[1762626904953,0.27494736,3397.2,3397.1,3.88378726]
[1762626905468,0.002,3397.4,3397.3,2.94351396]
[1762626905657,0.27726928,3397.4,3397.3,3.43681396]
[1762626908287,0.27726928,3397.4,3397.3,2.94351396]
[1762626908627,1.22806928,3397.4,3397.1,3.23466312]
[1762626908830,0.27526928,3397.3,3397.1,0.291]
[1762626908982,0.46796928,3397.2,3397.1,0.291]
[1762626909996,3.41156989,3397.2,3397.1,0.291]
[1762626910324,3.87946989,3397.2,3397.1,0.291]
[1762626910856,5.13918189,3397.2,3397.1,0.291]
[1762626911115,6.003445,3397.2,3397.1,0.291]
[1762626911490,3.05984439,3397.2,3397.1,0.291]
[1762626911691,1.72768128,3397.2,3397.1,0.291]
[1762626913406,4.67128189,3397.2,3397.1,0.291]
[1762626913601,2.19558128,3397.2,3397.1,0.291]
[1762626913803,5.13918189,3397.2,3397.1,0.291]
[1762626914010,1.72768128,3397.2,3397.1,0.291]
[1762626914195,2.25078671,3397.2,3397.1,0.291]
[1762626915438,0.27526928,3397.2,3397.1,0.9711]
[1762626915638,0.27526928,3397.2,3397.1,4.40988726]
[1762626916406,0.27526928,3397.2,3397.1,0.9711]
[1762626916605,0.27526928,3397.2,3397.1,3.91478726]
[1762626916926,0.27526928,3397.2,3397.1,0.7843]
[1762626917108,0.27526928,3397.2,3397.1,3.72798726]
[1762626918214,0.27526928,3397.2,3397.1,0.7843]
[1762626918605,0.27526928,3397.2,3397.1,0.291]
[1762626918935,0.75816928,3397.2,3397.1,0.291]
[1762626919429,1.59643078,3397.2,3397.1,0.291]
[1762626919801,5.42938189,3397.2,3397.1,0.291]
[1762626923927,2.48578128,3397.2,3397.1,0.291]
[1762626924174,2.48578128,3397.2,3397.1,4.40988726]
[1762626924175,0.27526928,3397.2,3397.1,4.40988726]
[1762626925666,0.27526928,3397.2,3397.1,4.58572413]
[1762626926731,0.27526928,3397.2,3397.1,4.55628726]
[1762626929165,0.27526928,3397.2,3397.1,5.8255084]
[1762626929371,0.27526928,3397.2,3397.1,5.85494527]
[1762626929558,0.27526928,3397.2,3397.1,5.8255084]
[1762626930378,0.002,3397.4,3397.3,2.94351396]
[1762626930578,0.27700893,3397.4,3397.3,3.43681396]
[1762626930760,0.27700893,3397.4,3397.3,4.9553162]
[1762626941097,0.27700893,3397.4,3397.3,4.4602162]
[1762626944178,0.27700893,3397.4,3397.3,3.9669162]
[1762626944778,0.27700893,3397.4,3397.3,4.4513162]
[1762626945810,0.27700893,3397.4,3397.3,3.08991396]
[1762626945811,0.77500893,3397.4,3397.3,3.08991396]
[1762626946017,1.23980893,3397.4,3397.3,3.08991396]
[1762626946510,0.27700893,3397.4,3397.3,3.57431396]
[1762626948108,0.77500893,3397.4,3397.3,0.1464]
[1762626948313,0.27700893,3397.4,3397.3,3.08991396]
[1762626948812,1.23980893,3397.4,3397.3,0.1464]
[1762626949006,1.23980893,3397.4,3397.3,3.08991396]
[1762626949521,1.23980893,3397.4,3397.3,0.1464]
[1762626950919,1.23980893,3397.4,3397.3,3.08991396]
[1762626952240,1.23980893,3397.4,3397.3,3.09091396]
[1762626952595,0.77500893,3397.4,3397.3,3.09091396]
[1762626956216,0.27700893,3397.4,3397.3,3.09091396]
[1762626956401,0.27700893,3397.4,3397.3,3.57531396]
[1762626961351,0.27700893,3397.4,3397.3,3.09091396]
[1762626961541,1.23150893,3397.4,3397.3,0.1474]
[1762626961739,1.23150893,3397.4,3397.3,3.09091396]
[1762626963275,1.23150893,3397.4,3397.3,0.1474]
[1762626963952,1.23150893,3397.4,3397.3,3.09091396]
[1762626965777,1.23150893,3397.4,3397.3,0.1474]
[1762626965987,1.23150893,3397.4,3397.3,0.001]
[1762626965988,4.61627029,3397.4,3397.3,0.001]
[1762626966288,5.43874913,3397.4,3397.3,0.001]
[1762626966652,5.43947211,3397.4,3397.3,0.001]
[1762626967349,5.84497611,3397.4,3397.3,0.001]
[1762626968358,6.28631015,3397.4,3397.3,0.001]
[1762626968788,7.54602215,3397.4,3397.3,0.001]
[1762626969290,7.10468811,3397.4,3397.3,0.001]
[1762626969491,7.54602215,3397.4,3397.3,0.001]
[1762626971093,7.54602215,3397.4,3397.1,0.291]
[1762626971094,9.68534987,3397.2,3397.1,0.291]
[1762626971290,12.14813142,3397.2,3397.1,0.291]
[1762626971521,12.61093142,3397.2,3397.1,0.291]
[1762626971659,12.61093142,3397.2,3397.0,0.001]
[1762626971660,0.405504,3396.8,3396.7,0.001]
[1762626971986,4.20391927,3396.5,3395.3,2.9452294]
[1762626972188,6.50101077,3396.5,3395.3,2.9452294]
[1762626972404,6.96381077,3396.5,3395.3,2.9452294]
[1762626972567,7.40514481,3396.5,3395.2,2.9453181]
[1762626972890,7.40514481,3396.5,3395.3,2.94522507]
[1762626973086,7.40514481,3396.5,3395.4,2.94515416]
[1762626973391,7.81064881,3396.5,3395.0,2.94549037]
[1762626973693,7.81064881,3396.5,3395.2,2.94532369]
[1762626974071,6.55093681,3396.5,3395.3,1.259712]
[1762626974269,7.81064881,3396.5,3394.8,2.99625015]
[1762626974564,12.88718207,3396.5,3394.8,2.94562498]
[1762626974753,12.88718207,3396.5,3395.0,1.259712]
[1762626974957,12.88718207,3396.5,3394.8,1.259712]
[1762626975153,12.88718207,3396.5,3395.0,2.94548191]
[1762626975390,12.88718207,3396.5,3394.8,2.94566875]
[1762626975696,12.88718207,3396.5,3394.9,2.94558797]
[1762626975870,12.88718207,3396.5,3394.7,0.4805]
[1762626976194,12.88718207,3396.5,3394.9,2.94558082]
[1762626976364,13.36768207,3396.5,3394.7,0.4805]
[1762626976571,13.8294722,3396.5,3394.7,3.42619743]
[1762626976962,13.8294722,3396.5,3394.8,2.94565096]
[1762626977460,13.8294722,3396.5,3394.7,0.4805]
[1762626977687,13.8294722,3396.5,3395.1,0.1965]
[1762626978460,13.8294722,3396.5,3395.2,0.4805]
[1762626978972,13.8294722,3396.5,3395.3,0.4805]
[1762626982696,13.8294722,3396.5,3395.4,0.4805]
[1762626983796,12.92533816,3396.5,3395.8,0.4805]
[1762626984697,13.38813816,3396.5,3395.8,0.4805]
[1762626985765,13.8294722,3396.5,3395.1,0.3437]
[1762626986098,13.8294722,3396.5,3395.3,0.4805]
[1762626986402,13.3666722,3396.5,3395.2,2.94532521]
[1762626986696,13.8294722,3396.5,3395.8,0.4805]
[1762626987397,13.8294722,3396.5,3396.0,0.001]
[1762626991292,0.405504,3396.2,3396.0,0.001]
[1762626991602,10.64346925,3396.1,3396.0,0.001]
[1762626992000,11.29576925,3396.1,3396.0,0.001]
[1762626992176,11.75758303,3396.1,3396.0,0.001]
[1762626994204,16.83411629,3396.1,3396.0,0.001]
[1762626994382,18.09792917,3396.1,3396.0,0.001]
[1762626995102,18.09792917,3396.1,3394.1,2.9462774]
[1762626995103,0.405504,3395.5,3393.6,2.94766897]
[1762626995289,2.94621511,3394.2,3393.6,0.001]
[1762626995473,0.27573191,3394.1,3394.0,0.6687]
[1762626995898,0.27573191,3394.1,3394.0,1.1647]
[1762626996465,3.22202105,3394.1,3394.0,1.1647]
[1762626997008,3.62752505,3394.1,3394.0,0.6925]
[1762626997370,3.62752505,3394.1,3394.0,1.1647]
[1762626997905,0.68123591,3394.1,3394.0,1.1647]
[1762626998214,0.68123591,3394.1,3394.0,0.6925]
[1762626998512,0.68123591,3394.1,3394.0,1.1647]
[1762626998875,3.62752505,3394.1,3394.0,1.1647]
[1762626999273,0.68123591,3394.1,3394.0,1.1647]
[1762627001030,0.27573191,3394.1,3394.0,1.1647]
[1762627001215,0.42293191,3394.1,3394.0,1.1647]
[1762627001715,0.42293191,3394.1,3394.0,4.11107595]
[1762627001877,0.27573191,3394.1,3394.0,4.52218355]
[1762627004706,0.27573191,3394.1,3394.0,1.5758076]
[1762627004916,0.27573191,3394.1,3394.0,4.52218355]
[1762627005232,0.27573191,3394.1,3394.0,4.52318355]
[1762627005788,0.27573191,3394.1,3394.0,4.67038355]
[1762627005992,0.27573191,3394.1,3394.0,4.52318355]
[1762627006188,0.1472,3394.8,3394.5,2.94592433]
[1762627006425,0.1472,3394.8,3394.6,0.58920315]
[1762627006622,0.1472,3394.8,3394.7,0.6554]
[1762627007007,0.1472,3394.8,3394.7,1.1546]
[1762627013640,0.1472,3394.8,3394.3,0.6464]
[1762627013945,3.09289299,3394.8,3394.7,0.4643]
[1762627015325,0.1472,3394.8,3394.7,0.9635]
[1762627017646,3.09288163,3394.8,3394.7,0.4643]
[1762627017853,0.1472,3394.8,3394.7,0.4643]
[1762627018239,0.42208032,3394.8,3394.7,0.9635]
[1762627019251,3.36776195,3394.8,3394.7,0.4643]
[1762627019439,0.42208032,3394.8,3394.7,0.9635]
[1762627022256,3.36776195,3394.8,3394.7,0.9635]
[1762627022461,0.405504,3394.7,3394.1,0.001]
[1762627022757,0.405504,3394.2,3394.1,0.001]
[1762627022959,0.27488032,3394.2,3394.1,0.001]
[1762627023162,0.27488032,3394.2,3394.1,4.09188914]
[1762627026051,0.27488032,3394.2,3394.1,1.1456]
[1762627027265,0.27488032,3394.2,3394.1,1.84954377]
[1762627027466,0.27488032,3394.2,3394.1,4.79583291]
[1762627032541,0.27488032,3394.2,3394.1,4.94303291]
[1762627033042,0.27488032,3394.2,3394.1,4.23908914]
[1762627034272,0.27488032,3394.2,3394.1,0.8224]
[1762627037622,0.27488032,3394.2,3394.1,0.6377]
[1762627038106,0.27488032,3394.2,3394.1,0.1482]
[1762627038508,0.73708032,3394.2,3394.1,0.1482]
[1762627039705,0.73708032,3394.2,3394.1,0.001]
[1762627039910,0.27488032,3394.2,3394.1,0.001]
[1762627040411,0.27488032,3394.2,3394.1,0.4905]
[1762627040906,0.27488032,3394.2,3394.1,3.43678914]
[1762627041206,0.27488032,3394.2,3394.1,4.13697423]
[1762627041598,0.27688032,3394.2,3394.1,4.13697423]
[1762627042606,0.27688032,3394.2,3394.1,1.19068509]
[1762627042804,0.27688032,3394.2,3394.1,4.13697423]
[1762627043518,0.27688032,3394.2,3394.1,3.43678914]
[1762627044417,0.27688032,3394.2,3394.1,4.09188914]
[1762627046094,0.27688032,3394.2,3394.1,4.23908914]
[1762627046297,0.002,3394.6,3394.5,2.94594196]
[1762627046616,0.002,3394.6,3394.5,4.15062759]
[1762627046915,0.002,3394.6,3394.5,4.76822759]
[1762627048891,0.002,3394.6,3394.5,11.22862012]
[1762627049520,0.002,3394.6,3394.5,11.34661961]
[1762627049879,1e-08,3394.8,3394.7,3.4352684]
[1762627050079,1e-08,3394.8,3394.7,5.0759184]
[1762627050319,1e-08,3394.8,3394.7,5.57577608]
[1762627050616,1e-08,3394.8,3394.7,5.5463184]
[1762627056237,1e-08,3394.8,3394.7,6.3356304]
[1762627056553,1e-08,3394.8,3394.7,6.8150304]
[1762627058252,1e-08,3394.8,3394.7,6.6678304]
[1762627058457,1e-08,3394.8,3394.7,6.8150304]
[1762627061537,1e-08,3394.8,3394.7,10.3235344]
[1762627062050,1e-08,3394.8,3394.7,6.8150304]
[1762627066744,1e-08,3394.8,3394.7,6.93301353]
[1762627067430,1e-08,3394.8,3394.7,10.44151753]
[1762627067633,0.002,3395.5,3395.1,2.94542134]
[1762627067950,0.002,3395.5,3395.1,10.21251387]
[1762627068127,0.002,3395.5,3395.1,10.70251387]
[1762627068449,0.002,3395.5,3395.1,10.82048413]
[1762627072028,1e-08,3395.5,3395.4,3.4098611]
[1762627072354,1e-08,3395.5,3395.4,5.0750771]
[1762627072649,1e-08,3395.5,3395.4,5.83023344]
[1762627072837,1e-08,3395.5,3395.4,8.93323344]
[1762627076650,0.002,3395.7,3395.6,7.71320363]
[1762627076854,0.002,3395.7,3395.6,13.52578416]
[1762627077049,0.002,3395.7,3395.6,14.01578416]
[1762627078124,0.002,3395.7,3395.6,14.13373181]
[1762627078323,0.002,3396.1,3396.0,4.20435275]
[1762627078523,0.002,3396.1,3396.0,10.80608289]
[1762627078746,0.002,3396.1,3396.0,11.44328289]
[1762627078925,0.002,3396.1,3396.0,11.56123054]
[1762627080121,1e-08,3396.2,3396.1,2.94455404]
[1762627080327,1e-08,3396.2,3396.1,6.14392396]
[1762627080750,1e-08,3396.2,3396.1,5.77186326]
[1762627081662,0.45530001,3396.2,3396.1,5.17696326]
[1762627081960,1.21503499,3396.2,3396.1,5.05902396]
[1762627082259,1.21503499,3396.2,3396.1,2.94455404]
[1762627084936,0.002,3396.4,3396.1,3.56145404]
[1762627085143,0.002,3396.4,3396.3,9.76895224]
[1762627085454,0.002,3396.4,3396.3,9.91615224]
[1762627085653,0.002,3396.4,3396.3,10.39665224]
[1762627085849,0.002,3396.4,3396.3,12.39702694]
[1762627090230,0.002,3396.4,3396.3,15.50002694]
[1762627092266,0.002,3396.4,3396.3,15.6179572]
[1762627092968,0.002,3396.4,3396.3,15.1374572]
[1762627093665,0.002,3396.4,3396.3,15.6179572]
[1762627095781,0.002,3397.0,3396.9,4.20357257]
[1762627095948,0.002,3397.0,3396.9,10.80701804]
[1762627096298,0.002,3397.0,3396.9,5.84581984]
[1762627096504,0.002,3397.0,3396.9,5.72885844]
[1762627096794,0.4573,3397.0,3396.9,5.35911984]
[1762627096946,1.21713493,3397.0,3396.9,5.35911984]
[1762627098178,0.942,3397.0,3396.9,5.35911984]
[1762627098381,1.21721216,3397.0,3396.9,4.34997257]
[1762627100694,1.21721216,3397.0,3396.9,3.09026057]
[1762627103507,1.21721216,3397.0,3396.9,8.16842017]
[1762627106576,1.21721216,3397.0,3396.9,3.09026057]
[1762627115328,0.27721216,3397.0,3396.9,8.66242017]
[1762627115525,0.27721216,3397.0,3396.9,10.16893625]
[1762627116542,0.002,3397.1,3397.0,4.20348591]
[1762627116707,0.002,3397.1,3397.0,5.18188591]
[1762627116907,0.002,3397.1,3397.0,6.79967946]
[1762627118666,0.9673,3397.1,3397.0,6.30567946]
[1762627118941,0.9673,3397.1,3397.0,4.20348591]
[1762627119507,0.9673,3397.1,3397.0,2.94377391]
[1762627126913,0.002,3397.1,3397.0,4.10281164]
[1762627127114,0.002,3397.1,3397.0,5.33308591]
[1762627129527,0.002,3397.1,3397.0,5.45099531]
[1762627129724,0.002,3397.1,3397.0,7.91079949]
[1762627129954,1e-08,3397.3,3397.2,3.43030061]
[1762627130128,1e-08,3397.3,3397.2,8.50846021]
[1762627130328,1e-08,3397.3,3397.2,9.15136021]
[1762627131164,1e-08,3397.3,3397.2,9.26925884]
[1762627131328,1e-08,3397.3,3397.2,10.86251373]
[1762627133648,1e-08,3397.5,3397.4,3.83563132]
[1762627134162,1e-08,3397.5,3397.4,4.47853132]
[1762627134566,0.27510099,3397.5,3397.4,4.47853132]
[1762627134760,0.2750987,3397.5,3397.4,4.47853132]
[1762627134964,1e-08,3397.5,3397.4,5.61514598]
[1762627136074,1e-08,3397.5,3397.4,5.20964198]
[1762627136970,1e-08,3397.5,3397.4,5.32753157]
[1762627138560,1e-08,3397.5,3397.4,4.83103157]
[1762627141175,0.47580001,3397.5,3397.4,4.34433157]
[1762627141361,1.2127614,3397.5,3397.4,3.08982732]
[1762627143380,1e-08,3397.5,3397.4,8.63388692]
[1762627143880,1e-08,3397.5,3397.4,9.09038692]
[1762627144445,1e-08,3397.5,3397.4,10.45914512]
[1762627144776,0.002,3397.8,3397.4,10.45914512]
[1762627144777,1e-08,3397.8,3397.7,3.40906743]
[1762627145279,1e-08,3397.8,3397.7,4.01196743]
[1762627145482,1e-08,3397.8,3397.7,4.1298539]
[1762627146773,1e-08,3397.8,3397.7,5.3895659]
[1762627147157,1e-08,3397.8,3397.7,5.3385699]
[1762627147475,1e-08,3397.8,3397.7,10.85102699]
[1762627148450,1e-08,3398.4,3398.3,3.56604779]
[1762627148654,0.27479546,3398.4,3398.3,10.01296559]
[1762627149354,1e-08,3398.4,3398.3,10.01296559]
[1762627149703,1e-08,3398.4,3398.3,10.97848935]
[1762627151794,1e-08,3398.4,3398.3,10.36448935]
[1762627152510,0.94790001,3398.4,3398.3,4.20235979]
[1762627152673,1.22254017,3398.4,3398.3,4.20235979]
[1762627152990,0.76044017,3398.4,3398.3,4.20235979]
[1762627153196,1.22254017,3398.4,3398.3,4.20235979]
[1762627153602,0.27464017,3398.4,3398.3,9.41899206]
[1762627153888,0.48580001,3398.4,3398.3,10.62573872]
[1762627154097,1e-08,3398.4,3398.3,11.09163872]
[1762627154594,1e-08,3398.4,3398.3,11.54813872]
[1762627155305,1e-08,3398.4,3398.3,11.84313872]
[1762627155457,1e-08,3398.4,3398.3,11.54813872]
[1762627155653,1e-08,3398.4,3398.3,11.73643872]
[1762627155873,1e-08,3398.4,3398.3,11.27993872]
[1762627156402,1e-08,3398.4,3398.3,6.09273292]
[1762627157268,1e-08,3398.4,3398.3,6.23913292]
[1762627162386,0.48580001,3398.4,3398.3,5.77323292]
[1762627162706,1e-08,3398.4,3398.3,5.77323292]
[1762627163006,1e-08,3398.4,3398.3,6.23913292]
[1762627164606,1e-08,3398.4,3398.3,5.77323292]
[1762627164903,1e-08,3398.4,3398.3,6.23913292]
[1762627165202,0.48580001,3398.4,3398.3,5.77323292]
[1762627165405,0.48580001,3398.4,3398.3,5.62683292]
[1762627165406,0.94790001,3398.4,3398.3,5.62683292]
[1762627165568,1.22267402,3398.4,3398.3,4.20235979]
[1762627165906,0.48580001,3398.4,3398.3,4.20235979]
[1762627166104,0.94790001,3398.4,3398.3,4.20235979]
[1762627167782,0.94790001,3398.4,3398.3,4.20335979]
[1762627167983,1.22274615,3398.4,3398.3,4.20335979]
[1762627169303,0.76064615,3398.4,3398.3,4.20335979]
[1762627169618,1.22274615,3398.4,3398.3,4.20335979]
[1762627171219,1.22274615,3398.4,3398.3,2.94364779]
[1762627174691,0.27484615,3398.4,3398.3,2.94364779]
[1762627174895,0.76944615,3398.4,3398.3,3.53228649]
[1762627175221,0.76944615,3398.4,3398.3,3.56171296]
[1762627175418,0.76944615,3398.4,3398.3,3.70811296]
[1762627176403,1.23264615,3398.4,3398.3,3.09004779]
[1762627178116,0.27484615,3398.4,3398.3,3.09004779]
[1762627178324,0.76944615,3398.4,3398.3,3.09004779]
[1762627178898,0.002,3398.5,3398.4,2.9425612]
[1762627179099,0.27737884,3398.5,3398.4,4.6941732]
[1762627179323,0.27737884,3398.5,3398.4,5.84381383]
[1762627179525,0.77197884,3398.5,3398.4,5.35191383]
[1762627179702,1.23517884,3398.5,3398.4,5.35191383]
[1762627180103,0.77197884,3398.5,3398.4,5.35191383]
[1762627180714,1.23517884,3398.5,3398.4,5.35191383]
[1762627180942,1.23517884,3398.5,3398.4,4.2022732]
[1762627181232,0.77197884,3398.5,3398.4,4.2022732]
[1762627181437,1.23517884,3398.5,3398.4,4.2022732]
[1762627181638,1.23517884,3398.5,3398.4,4.3486732]
[1762627183543,0.27737884,3398.5,3398.4,4.3486732]
[1762627183843,0.73737884,3398.5,3398.4,5.37217922]
[1762627184039,1.20897884,3398.5,3398.4,5.37217922]
[1762627184547,1.20897884,3398.5,3398.4,4.3486732]
[1762627187640,1.20897884,3398.5,3398.4,3.0889612]
[1762627188418,0.73737884,3398.5,3398.4,3.0889612]
[1762627189418,0.73737884,3398.5,3398.4,4.3486732]
[1762627190259,0.27737884,3398.5,3398.4,4.3486732]
[1762627190423,0.73737884,3398.5,3398.4,5.37511364]
[1762627190922,0.27737884,3398.5,3398.4,6.31941364]
[1762627191323,0.27737884,3398.5,3398.4,5.82601364]
[1762627194565,1.20897884,3398.5,3398.4,5.37511364]
[1762627195662,0.002,3398.8,3398.7,2.94230146]
[1762627195869,0.002,3398.8,3398.7,5.49905528]
[1762627196167,0.462,3398.8,3398.7,5.64545528]
[1762627196545,0.9336,3398.8,3398.7,5.64545528]
[1762627197762,0.462,3398.8,3398.7,5.64545528]
[1762627198156,0.9336,3398.8,3398.7,5.64545528]
[1762627198764,0.002,3398.8,3398.7,6.09635528]
[1762627199177,0.002,3398.8,3398.7,5.64545528]
[1762627199477,0.462,3398.8,3398.7,5.64545528]
[1762627201084,0.9336,3398.8,3398.7,4.34841346]
[1762627201675,0.9534,3398.8,3398.7,4.34841346]
[1762627203349,0.9534,3398.8,3398.7,0.1464]
[1762627203863,0.9534,3398.8,3398.7,3.08870146]
[1762627204576,0.9534,3398.8,3398.7,0.1464]
[1762627205136,0.9534,3398.8,3398.7,3.08870146]
[1762627205969,0.9534,3398.8,3398.7,0.1464]
[1762627206172,0.9534,3398.8,3398.7,3.08870146]
[1762627206533,0.9534,3398.8,3398.4,0.001]
[1762627206761,0.4749,3398.5,3398.4,0.001]
[1762627206959,0.4749,3398.5,3398.4,2.9435612]
[1762627207240,0.9663,3398.5,3398.4,2.9435612]
[1762627207741,1.24157508,3398.5,3398.4,0.001]
[1762627207938,1.97948026,3398.5,3398.4,0.001]
[1762627208584,1.24157508,3398.5,3398.4,3.0899612]
[1762627215153,0.75017508,3398.5,3398.4,3.0899612]
[1762627217599,0.27527508,3398.5,3398.4,3.5787612]
[1762627217752,0.27527508,3398.5,3398.4,4.8384732]
[1762627217954,0.27527508,3398.5,3398.4,6.29522564]
[1762627220163,0.75017508,3398.5,3398.4,5.80642564]
[1762627220364,1.24157508,3398.5,3398.4,4.3496732]
[1762627221087,1.24357508,3398.5,3398.4,4.3496732]
[1762627226271,0.27727508,3398.5,3398.4,5.3249732]
[1762627226483,0.002,3398.8,3398.7,2.94230146]
[1762627226686,0.002,3398.8,3398.7,9.76378283]
[1762627226892,0.002,3398.8,3398.7,10.39668283]
[1762627230478,0.002,3398.8,3398.7,4.83721346]
[1762627230709,0.002,3398.8,3398.7,6.12102254]
[1762627232622,0.9777,3398.8,3398.7,5.63222254]
[1762627232915,0.4891,3398.8,3398.7,5.63222254]
[1762627233278,0.002,3398.8,3398.7,6.11172254]
[1762627233479,0.002,3398.8,3398.7,5.63222254]
[1762627235097,1.1331,3398.8,3398.7,2.94230146]
[1762627235291,0.002,3398.8,3398.7,8.52419384]
[1762627235619,0.002,3398.8,3398.7,10.23478283]
[1762627237195,0.002,3398.8,3398.7,9.75448283]
[1762627238611,0.27713449,3398.8,3398.7,9.75448283]
[1762627238814,0.27713449,3398.8,3398.7,11.56439442]
[1762627239032,0.27714746,3398.8,3398.7,11.56439442]
[1762627241318,0.27714746,3398.8,3398.7,11.08409442]
[1762627243297,1e-08,3398.9,3398.8,5.16172689]
[1762627243625,1e-08,3398.9,3398.8,7.03260608]
[1762627244213,1e-08,3398.9,3398.8,7.15045886]
[1762627244600,1e-08,3398.9,3398.8,7.12967886]
[1762627245225,1e-08,3398.9,3398.8,7.27607886]
[1762627245743,0.46750001,3398.9,3398.8,6.31627886]
[1762627245963,1e-08,3398.9,3398.8,6.50342608]
[1762627246804,1e-08,3398.9,3398.8,6.05202608]
[1762627246997,0.46750001,3398.9,3398.8,4.18114689]
[1762627247223,1.12700001,3398.9,3398.8,4.18114689]
[1762627254441,0.46750001,3398.9,3398.8,4.18114689]
[1762627255119,0.93350001,3398.9,3398.8,4.18114689]
[1762627255441,1.20892004,3398.9,3398.8,4.18114689]
[1762627255954,1.20892004,3398.9,3398.8,4.32754689]
[1762627256442,1.20892004,3398.9,3398.8,4.32854689]
[1762627256966,1.40242004,3398.9,3398.8,4.32854689]
[1762627257468,0.27542004,3398.9,3398.8,5.05563173]